bitfinex-derivatives/quotes_BTCF0:USTF0_20250710
["timestamp","ask_amount","ask_price","bid_price","bid_amount"]
[1752159426087,0.77459231,111280.0,111270.0,0.6457044]
[1752159426479,0.77455811,111280.0,111270.0,0.6457044]
[1752159431499,0.46834526,111280.0,111270.0,0.6457044]
[1752159434592,0.46834526,111280.0,111270.0,0.6130044]
[1752159434788,0.77455811,111280.0,111270.0,0.40106]
[1752159434990,0.77455811,111280.0,111270.0,0.3773]
[1752159435695,0.77455811,111280.0,111270.0,0.5569444]
[1752159435894,0.77455811,111280.0,111270.0,0.3773]
[1752159436096,0.77455811,111280.0,111270.0,0.5569444]
[1752159436793,0.46834526,111280.0,111270.0,0.5569444]
[1752159436995,0.77455811,111280.0,111270.0,0.5569444]
[1752159438791,0.77455811,111280.0,111270.0,0.3773]
[1752159439203,0.77455811,111280.0,111270.0,0.5569444]
[1752159439502,0.77455811,111280.0,111270.0,0.3773]
[1752159439707,0.77455811,111280.0,111270.0,0.5569444]
[1752159439905,0.77455811,111280.0,111270.0,0.3773]
[1752159440403,0.77455811,111280.0,111270.0,0.5569444]
[1752159440600,0.77455811,111280.0,111270.0,0.5819144]
[1752159440799,0.37603547,111280.0,111270.0,0.88812725]
[1752159441102,0.37603547,111280.0,111270.0,0.95242725]
[1752159443705,0.37403547,111280.0,111270.0,0.95242725]
[1752159443902,0.37303547,111280.0,111270.0,0.95342725]
[1752159444798,0.40363547,111280.0,111270.0,0.6472144]
[1752159446304,0.371854,111280.0,111270.0,0.70094799]
[1752159446804,0.371854,111280.0,111270.0,1.00716084]
[1752159447002,0.0449045,111290.0,111280.0,0.1796283]
[1752159447208,0.2851344,111290.0,111280.0,1.5607274]
[1752159447407,0.2851344,111290.0,111280.0,1.6227274]
[1752159447596,0.2851344,111290.0,111280.0,1.64960734]
[1752159448197,0.2881344,111290.0,111280.0,1.62270981]
[1752159448906,0.2851344,111290.0,111280.0,1.704316]
[1752159449107,0.2851344,111290.0,111280.0,1.62370981]
[1752159449300,0.2402278,111290.0,111280.0,1.62370981]
[1752159450201,0.2644178,111290.0,111280.0,1.62370981]
[1752159451107,0.3254178,111290.0,111280.0,1.62370981]
[1752159452308,0.3254178,111290.0,111280.0,1.31749696]
[1752159453003,0.3254178,111290.0,111280.0,1.62370981]
[1752159453803,0.2805133,111290.0,111280.0,1.62370981]
[1752159454006,0.2253233,111290.0,111280.0,1.62370981]
[1752159455510,0.2495133,111290.0,111280.0,1.62370981]
[1752159460620,0.2495133,111290.0,111280.0,1.31749696]
[1752159460912,0.2495133,111290.0,111280.0,1.62370981]
[1752159462114,0.2253233,111290.0,111280.0,1.62370981]
[1752159462917,0.2486233,111290.0,111280.0,1.62370981]
[1752159463613,0.2486233,111290.0,111280.0,1.00402981]
[1752159463809,0.2486233,111290.0,111280.0,1.62334981]
[1752159467017,0.2800233,111290.0,111280.0,1.62334981]
[1752159467712,0.58623615,111290.0,111280.0,1.31709696]
[1752159468016,0.58623615,111290.0,111280.0,1.25509696]
[1752159470714,0.2800233,111290.0,111280.0,1.25509696]
[1752159471319,0.58623615,111290.0,111280.0,1.25509696]
[1752159475118,0.58623615,111290.0,111280.0,1.33570315]
[1752159475425,0.2800233,111290.0,111280.0,1.33570315]
[1752159475720,0.58623615,111290.0,111280.0,1.33570315]
[1752159476921,0.5852576,111290.0,111280.0,1.64093745]
[1752159477112,0.5852576,111290.0,111280.0,1.58722879]
[1752159480822,0.5852576,111290.0,111280.0,0.96794879]
[1752159481119,0.5852576,111290.0,111280.0,0.48308619]
[1752159481323,0.5852576,111290.0,111280.0,1.28171469]
[1752159482223,0.5852576,111290.0,111280.0,1.58694899]
[1752159482716,0.4056343,111290.0,111280.0,1.58694899]
[1752159482917,0.2253123,111290.0,111280.0,1.89218329]
[1752159483115,0.3509343,111290.0,111280.0,1.64924899]
[1752159483315,0.3509343,111290.0,111280.0,1.95448329]
[1752159483515,0.5305466,111290.0,111280.0,1.64924899]
[1752159483714,0.2253123,111290.0,111280.0,1.64924899]
[1752159484014,0.5305466,111290.0,111280.0,1.66329039]
[1752159484312,0.5538466,111290.0,111280.0,1.66329039]
[1752159484511,0.5860466,111290.0,111280.0,1.66329039]
[1752159484925,0.58605038,111290.0,111280.0,1.36858717]
[1752159485324,0.2808123,111290.0,111280.0,1.36858717]
[1752159486923,0.2808123,111290.0,111280.0,1.36850717]
[1752159487323,0.2808123,111290.0,111280.0,1.33750717]
[1752159487525,0.58605038,111290.0,111280.0,1.33750717]
[1752159488428,0.2808123,111290.0,111280.0,1.33750717]
[1752159493534,0.0779,111290.0,111280.0,1.67564525]
[1752159493834,0.2253124,111290.0,111280.0,1.67564525]
[1752159494032,0.0457,111290.0,111280.0,1.67564525]
[1752159494732,0.2253124,111290.0,111280.0,1.67564525]
[1752159496030,0.2827824,111290.0,111280.0,1.67564525]
[1752159496235,0.2827824,111290.0,111280.0,1.37040717]
[1752159496629,0.58802048,111290.0,111280.0,1.37040717]
[1752159497029,0.58802048,111290.0,111280.0,1.37040756]
[1752159497938,0.2827824,111290.0,111280.0,1.37040756]
[1752159500039,0.2827824,111290.0,111280.0,1.37040779]
[1752159502741,0.10317,111290.0,111280.0,1.37040779]
[1752159502941,0.67715084,111300.0,111290.0,0.1946327]
[1752159503141,0.74065084,111300.0,111290.0,0.65861569]
[1752159503343,0.72339368,111300.0,111290.0,0.65861569]
[1752159504947,1.02956634,111300.0,111290.0,0.65861569]
[1752159505339,0.94176114,111300.0,111290.0,0.65861569]
[1752159505537,0.94176114,111300.0,111290.0,0.96382106]
[1752159506747,0.94176114,111300.0,111290.0,0.65861569]
[1752159508253,0.89686164,111300.0,111290.0,0.65861569]
[1752159508549,0.89686164,111300.0,111290.0,0.96382106]
[1752159508851,0.89686164,111300.0,111290.0,0.9638203]
[1752159509458,1.51538164,111300.0,111290.0,0.9638203]
[1752159509952,0.89686164,111300.0,111290.0,0.9638203]
[1752159510146,1.51538164,111300.0,111290.0,0.9638203]
[1752159510342,0.10684,111300.0,111290.0,0.9638203]
[1752159510548,0.2864366,111300.0,111290.0,0.9638203]
[1752159510748,0.59164197,111300.0,111290.0,0.9638203]
[1752159511251,0.41204537,111300.0,111290.0,0.9638203]
[1752159511453,0.59164197,111300.0,111290.0,0.9638203]
[1752159511650,0.05047,111300.0,111290.0,0.98293372]
[1752159511854,0.60631622,111310.0,111300.0,0.2194866]
[1752159512148,0.60631622,111310.0,111300.0,1.31735364]
[1752159512854,0.60631622,111310.0,111300.0,1.31734677]
[1752159513053,0.60831622,111310.0,111300.0,1.31734677]
[1752159513254,0.42873572,111310.0,111300.0,1.31734677]
[1752159513455,0.61031622,111310.0,111300.0,1.27706082]
[1752159513948,0.61031622,111310.0,111300.0,1.31734009]
[1752159514345,0.61031622,111310.0,111300.0,1.62254546]
[1752159514556,0.39893572,111310.0,111300.0,1.58226619]
[1752159514761,0.39893572,111310.0,111300.0,1.64446619]
[1752159515152,0.39693572,111310.0,111300.0,1.64446619]
[1752159515758,0.42803572,111310.0,111300.0,1.64446619]
[1752159516967,0.09796035,111310.0,111300.0,1.64446619]
[1752159517171,0.04153,111320.0,111310.0,0.1946005]
[1752159517371,1.17555977,111320.0,111310.0,0.63279067]
[1752159517668,1.20635977,111320.0,111310.0,0.63279067]
[1752159517856,1.51156514,111320.0,111310.0,0.63279067]
[1752159518369,1.51256514,111320.0,111310.0,0.63279067]
[1752159518564,1.20735977,111320.0,111310.0,0.93799604]
[1752159518970,1.20735977,111320.0,111310.0,0.94852503]
[1752159519362,1.20735977,111320.0,111310.0,0.93799604]
[1752159519558,1.51256514,111320.0,111310.0,0.93799604]
[1752159519768,1.33300074,111320.0,111310.0,0.93799604]
[1752159519969,1.51256514,111320.0,111310.0,0.94852503]
[1752159520268,1.51256514,111320.0,111310.0,0.93799604]
[1752159520764,1.51256514,111320.0,111310.0,0.63278966]
[1752159520970,1.51256514,111320.0,111310.0,0.63278976]
[1752159523776,1.20735977,111320.0,111310.0,0.93799513]
[1752159523977,1.33300074,111320.0,111310.0,0.99171873]
[1752159524172,1.02779537,111320.0,111310.0,0.99171873]
[1752159524375,1.20735977,111320.0,111310.0,0.99171873]
[1752159524567,1.20735977,111320.0,111310.0,0.93799513]
[1752159524768,1.02779537,111320.0,111310.0,0.93799513]
[1752159524968,1.20735977,111320.0,111310.0,0.99171873]
[1752159525175,1.20735977,111320.0,111310.0,0.93799513]
[1752159525571,0.07343,111320.0,111310.0,0.93799513]
[1752159525875,0.99683537,111320.0,111310.0,1.00379513]
[1752159526075,0.99683537,111320.0,111310.0,1.05751873]
[1752159526278,1.17639977,111320.0,111310.0,1.05751873]
[1752159526477,1.17639977,111320.0,111310.0,1.00379513]
[1752159526773,0.8711944,111320.0,111310.0,1.00373845]
[1752159527075,1.51370514,111320.0,111310.0,0.09235248]
[1752159527276,1.51370514,111320.0,111310.0,0.63273308]
[1752159527978,1.51370514,111320.0,111310.0,0.27193308]
[1752159528171,1.51370514,111320.0,111310.0,0.09235248]
[1752159528676,1.51370514,111320.0,111310.0,0.27193378]
[1752159528877,0.89550514,111320.0,111310.0,0.09235248]
[1752159529079,1.51362514,111320.0,111310.0,0.09235248]
[1752159530781,1.20837113,111320.0,111310.0,0.09235248]
[1752159531074,1.20837113,111320.0,111310.0,0.05423248]
[1752159532375,1.20837113,111320.0,111310.0,0.07733248]
[1752159532776,1.20837113,111320.0,111310.0,0.05423248]
[1752159534984,1.20837113,111320.0,111310.0,0.09298248]
[1752159535180,1.20837113,111320.0,111310.0,0.63336398]
[1752159535780,1.20837113,111320.0,111310.0,0.09298248]
[1752159537382,1.20837113,111320.0,111310.0,0.06988248]
[1752159538281,1.20837113,111320.0,111310.0,0.63336398]
[1752159538483,1.20837113,111320.0,111310.0,0.69761666]
[1752159538886,1.20837113,111320.0,111310.0,0.68708758]
[1752159539187,1.20837113,111320.0,111310.0,0.69761687]
[1752159540286,1.20837113,111320.0,111310.0,0.15723537]
[1752159540983,1.20837113,111320.0,111310.0,0.33681707]
[1752159541489,1.20837113,111320.0,111310.0,0.65742311]
[1752159541690,1.20837113,111320.0,111310.0,0.69767311]
[1752159541883,1.20837113,111320.0,111310.0,0.32634382]
[1752159542686,1.20837113,111320.0,111310.0,0.32634877]
[1752159542886,1.20837113,111320.0,111310.0,0.14676707]
[1752159543189,1.20837113,111320.0,111310.0,0.14676782]
[1752159543389,1.20837113,111320.0,111310.0,0.32635781]
[1752159543588,1.20837113,111320.0,111310.0,0.28609467]
[1752159544188,1.20837113,111320.0,111310.0,0.10651287]
[1752159544591,1.20837113,111320.0,111310.0,0.32636486]
[1752159544787,1.20837113,111320.0,111310.0,0.28609467]
[1752159545696,1.20813113,111320.0,111310.0,0.28609467]
[1752159545891,1.20813113,111320.0,111310.0,0.64689467]
[1752159546091,1.20813113,111320.0,111310.0,0.28609448]
[1752159546391,1.20813113,111320.0,111310.0,0.64689448]
[1752159546596,0.59025113,111320.0,111310.0,0.64689448]
[1752159546797,1.20809113,111320.0,111310.0,0.64689448]
[1752159546998,1.20809113,111320.0,111310.0,0.46731268]
[1752159547295,1.20809113,111320.0,111310.0,0.10651268]
[1752159547598,1.20809113,111320.0,111310.0,0.28609448]
[1752159548096,1.20809113,111320.0,111310.0,0.10651268]
[1752159549799,1.20809113,111320.0,111310.0,0.28609478]
[1752159550201,1.20809113,111320.0,111310.0,0.10651268]
[1752159550797,1.20809113,111320.0,111310.0,0.28609468]
[1752159550999,1.20809113,111320.0,111310.0,0.10651268]
[1752159551996,1.20809113,111320.0,111310.0,0.10651244]
[1752159552901,1.51320584,111320.0,111310.0,0.64689444]
[1752159553300,1.51320584,111320.0,111310.0,0.46731244]
[1752159553905,1.51320584,111320.0,111310.0,0.64689444]
[1752159554403,1.51320584,111320.0,111310.0,0.10651244]
[1752159555102,1.51320584,111320.0,111310.0,0.28609444]
[1752159555397,1.51320584,111320.0,111310.0,0.10651244]
[1752159557401,1.51320584,111320.0,111310.0,0.28609444]
[1752159557903,1.51320584,111320.0,111310.0,0.2860948]
[1752159558099,0.89536584,111320.0,111310.0,0.72750099]
[1752159558299,1.51304584,111320.0,111310.0,0.6468948]
[1752159558500,1.51304584,111320.0,111310.0,0.4673128]
[1752159558998,1.51304584,111320.0,111310.0,0.6468948]
[1752159561110,1.51304584,111320.0,111310.0,0.64689454]
[1752159561606,1.51304584,111320.0,111310.0,0.46731254]
[1752159562203,1.51304584,111320.0,111310.0,0.64689454]
[1752159563212,1.51304584,111320.0,111310.0,0.10651254]
[1752159564415,1.51304584,111320.0,111310.0,0.28609454]
[1752159564615,1.51304584,111320.0,111310.0,0.10651254]
[1752159566299,1.51304584,111320.0,111310.0,0.64689444]
[1752159566505,0.89536584,111320.0,111310.0,0.95202977]
[1752159566804,1.51288584,111320.0,111310.0,0.95202977]
[1752159567204,1.51288584,111320.0,111310.0,0.64689405]
[1752159567811,1.51284584,111320.0,111310.0,0.64689405]
[1752159568012,1.51284584,111320.0,111310.0,0.67779405]
[1752159568208,1.51284584,111320.0,111310.0,0.75840024]
[1752159569411,1.51284584,111320.0,111310.0,0.75840018]
[1752159570612,1.51284584,111320.0,111310.0,0.79110018]
[1752159570811,1.51280584,111320.0,111310.0,0.79110018]
[1752159571021,1.51280584,111320.0,111310.0,1.0962359]
[1752159571504,1.33324144,111320.0,111310.0,1.0962359]
[1752159571709,1.51280714,111320.0,111310.0,1.0962359]
[1752159571907,1.51280714,111320.0,111310.0,1.0425123]
[1752159572108,1.51280714,111320.0,111310.0,1.09624486]
[1752159572508,1.51280714,111320.0,111310.0,1.09624489]
[1752159572916,1.48070714,111320.0,111310.0,1.09624489]
[1752159573114,1.48070714,111320.0,111310.0,1.04251182]
[1752159573311,1.48070714,111320.0,111310.0,0.7373761]
[1752159573513,1.48066714,111320.0,111310.0,0.79110691]
[1752159573805,1.14463142,111320.0,111310.0,1.04251182]
[1752159574013,0.52723142,111320.0,111310.0,1.04251182]
[1752159574211,0.2220957,111320.0,111310.0,1.65987182]
[1752159574507,0.01847,111320.0,111310.0,1.65987182]
[1752159576416,0.1825657,111320.0,111310.0,1.65987182]
[1752159576716,0.1825657,111320.0,111310.0,1.66087182]
[1752159577611,0.1815657,111320.0,111310.0,1.66087182]
[1752159577813,0.50251142,111320.0,111310.0,1.65679689]
[1752159578009,0.2211657,111320.0,111310.0,1.35166117]
[1752159578206,0.52630142,111320.0,111310.0,1.65679689]
[1752159583216,0.52630142,111320.0,111310.0,1.35166117]
[1752159583417,0.52630142,111320.0,111310.0,1.65679689]
[1752159586424,0.52630142,111320.0,111310.0,1.59319689]
[1752159586619,0.58850142,111320.0,111310.0,1.59319689]
[1752159586823,0.58850142,111320.0,111310.0,1.62609689]
[1752159587120,0.58850142,111320.0,111310.0,1.62609658]
[1752159587513,0.58850142,111320.0,111310.0,1.65619658]
[1752159591624,0.58850142,111320.0,111310.0,1.35106086]
[1752159591829,0.58850142,111320.0,111310.0,1.65619658]
[1752159593531,0.58850142,111320.0,111310.0,0.67074086]
[1752159593724,0.89363714,111320.0,111310.0,1.28770086]
[1752159594326,0.89363714,111320.0,111310.0,1.59283658]
[1752159594817,0.2833657,111320.0,111310.0,1.59283658]
[1752159595018,0.89363714,111320.0,111310.0,1.28770086]
[1752159596628,0.89363714,111320.0,111310.0,1.59283658]
[1752159598228,0.58850142,111320.0,111310.0,1.59283658]
[1752159598426,0.58850142,111320.0,111310.0,1.65743658]
[1752159600234,0.89363714,111320.0,111310.0,1.65743658]
[1752159600429,0.58850142,111320.0,111310.0,1.65743658]
[1752159601039,0.58850142,111320.0,111310.0,1.64339888]
[1752159601227,0.58850142,111320.0,111310.0,1.65743655]
[1752159601435,0.2833657,111320.0,111310.0,1.65743655]
[1752159601732,0.58850142,111320.0,111310.0,1.65743655]
[1752159601930,0.58850142,111320.0,111310.0,1.65731655]
[1752159602131,1.19877286,111320.0,111310.0,0.49115893]
[1752159602435,1.19877286,111320.0,111310.0,0.11105861]
[1752159603037,1.55957286,111320.0,111310.0,0.11105861]
[1752159603232,1.55957286,111320.0,111310.0,0.05733518]
[1752159604034,0.179598,111300.0,111290.0,0.02872343]
[1752159604233,0.179598,111300.0,111280.0,0.10384619]
[1752159604234,0.1796142,111290.0,111280.0,0.10384619]
[1752159604535,0.2033103,111280.0,111270.0,0.48086619]
[1752159604738,1.46328174,111280.0,111270.0,0.05261739]
[1752159605031,1.51920066,111280.0,111270.0,0.05261739]
[1752159605235,0.54160066,111280.0,111270.0,0.03946]
[1752159605436,1.15840066,111280.0,111270.0,0.03946]
[1752159605624,0.2033265,111270.0,111260.0,0.48086619]
[1752159605829,0.84700722,111270.0,111260.0,0.05260653]
[1752159606032,0.54161686,111270.0,111260.0,0.23226913]
[1752159606240,0.54161686,111270.0,111260.0,0.05260653]
[1752159606436,0.55039092,111270.0,111260.0,0.05260653]
[1752159606836,0.62295401,111270.0,111260.0,0.05260653]
[1752159607037,0.62295401,111270.0,111260.0,0.23226913]
[1752159607242,0.64467995,111270.0,111260.0,0.59306913]
[1752159607542,0.64467995,111270.0,111260.0,0.59506913]
[1752159607543,0.56300686,111270.0,111260.0,0.59506913]
[1752159607733,1.17984686,111270.0,111260.0,0.59506913]
[1752159607933,0.56300686,111270.0,111260.0,0.59506913]
[1752159608436,0.56300686,111270.0,111260.0,0.5819226]
[1752159608641,0.0329,111270.0,111260.0,0.91961296]
[1752159608836,0.8559616,111280.0,111270.0,0.2202164]
[1752159609036,0.8862616,111280.0,111270.0,0.6113164]
[1752159609233,0.35026036,111280.0,111270.0,0.6113164]
[1752159609437,0.04487,111280.0,111270.0,0.6113164]
[1752159609639,0.2099303,111280.0,111270.0,0.6421164]
[1752159609938,0.52989066,111280.0,111270.0,0.6421164]
[1752159610143,0.52989066,111280.0,111270.0,0.6431164]
[1752159610833,0.1796108,111300.0,111290.0,0.2196241]
[1752159611035,0.2253808,111300.0,111290.0,1.1973041]
[1752159611238,0.2253808,111300.0,111290.0,1.2274041]
[1752159611437,0.53077116,111300.0,111290.0,1.2274041]
[1752159612241,0.53577116,111300.0,111290.0,1.2274041]
[1752159612436,0.53577116,111300.0,111290.0,0.6105241]
[1752159612837,0.53377116,111300.0,111290.0,0.6115241]
[1752159613234,1.46211152,111300.0,111290.0,0.04101]
[1752159613440,1.49361152,111300.0,111290.0,0.04201]
[1752159613845,1.18822116,111300.0,111290.0,0.5824241]
[1752159614746,1.18822116,111300.0,111290.0,0.5814241]
[1752159614946,1.18922116,111300.0,111290.0,0.5814241]
[1752159615348,0.57238116,111300.0,111290.0,0.5814241]
[1752159615645,0.56327116,111300.0,111290.0,0.5814241]
[1752159615947,0.56427116,111300.0,111290.0,0.62501838]
[1752159616452,0.56425836,111300.0,111290.0,0.62501838]
[1752159616642,1.18105836,111300.0,111290.0,0.62501838]
[1752159616843,1.14955836,111300.0,111290.0,0.62501838]
[1752159617044,0.53275836,111300.0,111290.0,0.62501838]
[1752159617344,1.14955836,111300.0,111290.0,0.62501838]
[1752159617946,0.35316036,111300.0,111290.0,0.62501838]
[1752159618146,0.33859036,111300.0,111290.0,0.62501838]
[1752159618342,0.33859036,111300.0,111290.0,0.65671838]
[1752159618744,0.51818836,111300.0,111290.0,0.65671838]
[1752159619553,0.53275836,111300.0,111290.0,0.65671838]
[1752159621646,0.53275836,111300.0,111290.0,0.65674822]
[1752159622244,0.53275836,111300.0,111290.0,0.62504822]
[1752159623860,0.53275836,111300.0,111290.0,0.44543412]
[1752159624066,0.53275836,111300.0,111290.0,1.06219412]
[1752159624463,0.57306836,111300.0,111290.0,1.06219412]
[1752159624664,0.57306836,111300.0,111290.0,1.24180802]
[1752159624865,0.57306836,111300.0,111290.0,1.06219412]
[1752159625061,0.87845872,111300.0,111290.0,0.05403412]
[1752159625659,0.87845872,111300.0,111290.0,0.41483412]
[1752159626062,1.49521872,111300.0,111290.0,0.41483412]
[1752159626360,1.52674573,111300.0,111290.0,0.41483412]
[1752159627060,1.52674535,111300.0,111290.0,0.41483412]
[1752159627562,0.90998535,111300.0,111290.0,0.59444802]
[1752159627762,1.52670535,111300.0,111290.0,0.59444802]
[1752159627970,1.52670535,111300.0,111290.0,0.41483412]
[1752159628271,1.52670535,111300.0,111290.0,0.59444802]
[1752159628461,1.52670535,111300.0,111290.0,0.41483412]
[1752159629968,1.22131499,111300.0,111290.0,0.59444802]
[1752159630368,0.91592463,111300.0,111290.0,0.59444802]
[1752159630673,1.21220499,111300.0,111290.0,0.59444802]
[1752159630866,1.18100499,111300.0,111290.0,0.62494802]
[1752159631969,0.56428499,111300.0,111290.0,0.62494802]
[1752159632172,1.18100499,111300.0,111290.0,0.62494802]
[1752159632372,1.18100499,111300.0,111290.0,0.62496467]
[1752159634065,1.19011499,111300.0,111290.0,0.62496467]
[1752159635364,1.22161499,111300.0,111290.0,0.62496467]
[1752159636876,0.87557463,111300.0,111290.0,0.93035503]
[1752159637077,0.07929663,111300.0,111290.0,0.96215503]
[1752159637264,0.25889423,111300.0,111290.0,0.96215503]
[1752159638777,0.25889423,111300.0,111290.0,0.65676467]
[1752159639872,0.03352663,111300.0,111290.0,1.04276122]
[1752159640473,0.002,111300.0,111290.0,0.96215503]
[1752159641078,0.001,111300.0,111290.0,0.96515503]
[1752159641472,0.66443316,111310.0,111300.0,0.2200277]
[1752159641673,0.69606128,111310.0,111300.0,1.32392184]
[1752159642073,0.69606128,111310.0,111300.0,1.30988277]
[1752159642278,0.69606128,111310.0,111300.0,1.24320655]
[1752159642480,0.69606128,111310.0,111300.0,1.24620655]
[1752159642680,0.69606128,111310.0,111300.0,1.32692162]
[1752159644572,0.69606128,111310.0,111300.0,1.32892162]
[1752159645086,0.21121172,111310.0,111300.0,1.63431198]
[1752159645275,0.1795836,111310.0,111300.0,1.66671198]
[1752159645681,0.57743306,111320.0,111310.0,0.1952816]
[1752159645981,0.30362122,111320.0,111310.0,0.62585045]
[1752159646284,0.30362122,111320.0,111310.0,0.65825045]
[1752159646485,0.03357852,111320.0,111310.0,0.98226487]
[1752159646685,0.21314402,111320.0,111310.0,0.98226487]
[1752159646888,0.1815655,111320.0,111310.0,1.06297994]
[1752159647385,0.1815655,111320.0,111310.0,0.98226487]
[1752159647581,0.1815655,111320.0,111310.0,0.98326487]
[1752159647782,0.48695586,111320.0,111310.0,0.67787451]
[1752159647985,0.56478566,111320.0,111310.0,0.67887409]
[1752159648486,0.53322586,111320.0,111310.0,0.67887409]
[1752159648688,0.56477993,111320.0,111310.0,0.67887409]
[1752159650277,0.53322586,111320.0,111310.0,0.67887409]
[1752159651487,0.57383989,111320.0,111310.0,0.46689249]
[1752159651689,0.60533989,111320.0,111310.0,0.64647419]
[1752159652190,0.60533989,111320.0,111310.0,1.26299419]
[1752159652386,0.60533989,111320.0,111310.0,0.64647419]
[1752159652582,0.60533792,111320.0,111310.0,1.05241249]
[1752159652782,0.60533792,111320.0,111310.0,0.69161249]
[1752159652983,0.60533792,111320.0,111310.0,0.25467569]
[1752159653583,0.60533792,111320.0,111310.0,0.61548949]
[1752159654084,0.96613792,111320.0,111310.0,0.04076843]
[1752159654284,0.96613792,111320.0,111310.0,0.01603843]
[1752159654988,0.96613792,111320.0,111310.0,0.01603914]
[1752159655782,0.60533792,111320.0,111310.0,0.23606694]
[1752159655991,0.96613792,111320.0,111310.0,0.05646914]
[1752159656290,1.22181792,111320.0,111310.0,0.05646914]
[1752159656490,1.19031586,111320.0,111310.0,0.05646914]
[1752159656695,1.55111586,111320.0,111310.0,0.05646914]
[1752159656991,0.93463586,111320.0,111310.0,0.05646914]
[1752159657197,1.55111586,111320.0,111310.0,0.05646914]
[1752159660088,1.55111586,111320.0,111310.0,0.0564705]
[1752159666006,1.19031586,111320.0,111310.0,0.0564705]
[1752159666209,0.2684455,111320.0,111310.0,0.2360682]
[1752159666406,1.14974586,111320.0,111310.0,0.2360682]
[1752159666600,1.14974586,111320.0,111310.0,0.2687682]
[1752159666805,0.8443555,111320.0,111310.0,0.2687682]
[1752159667210,1.51054586,111320.0,111310.0,0.2687682]
[1752159667600,1.51054586,111320.0,111310.0,0.0891705]
[1752159667906,1.15885586,111320.0,111310.0,0.0891705]
[1752159668110,1.18965586,111320.0,111310.0,0.0891705]
[1752159668705,0.2677616,111320.0,111310.0,0.2687682]
[1752159668912,0.8443316,111320.0,111310.0,0.2687682]
[1752159669106,1.14972196,111320.0,111310.0,0.2687682]
[1752159669505,1.15883196,111320.0,111310.0,0.0891705]
[1752159669712,1.15883196,111320.0,111310.0,0.2687683]
[1752159671814,1.15883196,111320.0,111310.0,0.0891705]
[1752159672414,1.15883196,111320.0,111310.0,0.2687684]
[1752159673514,1.15883196,111320.0,111310.0,0.0891705]
[1752159673816,1.51963196,111320.0,111310.0,0.0891705]
[1752159674617,1.2142416,111320.0,111310.0,0.0891705]
[1752159674813,1.55133196,111320.0,111310.0,0.0891705]
[1752159676123,1.55133196,111320.0,111310.0,0.0160405]
[1752159680719,1.58287016,111320.0,111310.0,0.0160405]
[1752159682519,1.58287016,111320.0,111310.0,0.01592384]
[1752159682719,0.1796137,111300.0,111290.0,0.06917]
[1752159682925,2.41561262,111300.0,111290.0,0.06917]
[1752159683124,2.47691262,111300.0,111290.0,0.06917]
[1752159684221,2.47891262,111300.0,111290.0,0.06917]
[1752159685823,2.47891262,111300.0,111290.0,0.03807]
[1752159686027,2.47891262,111300.0,111290.0,0.02257]
[1752159687426,2.48778869,111300.0,111290.0,0.02257]
[1752159687727,0.1796301,111290.0,111280.0,0.08891023]
[1752159687922,0.90785866,111290.0,111280.0,0.04131023]
[1752159688230,0.94025866,111290.0,111280.0,0.04131023]
[1752159688417,0.2416683,111290.0,111280.0,0.54184689]
[1752159688620,0.2111683,111290.0,111280.0,0.93424689]
[1752159688820,0.2111683,111290.0,111280.0,0.96654689]
[1752159691131,0.2111683,111290.0,111280.0,2.19946689]
[1752159691431,0.2111683,111290.0,111280.0,1.89407653]
[1752159693833,0.2111683,111290.0,111280.0,2.19946689]
[1752159694734,0.2111683,111290.0,111280.0,2.21350849]
[1752159695227,0.2111683,111290.0,111280.0,1.90811813]
[1752159695428,0.0315382,111290.0,111280.0,2.21350849]
[1752159695632,0.2264864,111320.0,111310.0,0.217668]
[1752159695936,0.61491746,111320.0,111310.0,0.5925096]
[1752159696126,0.61491746,111320.0,111310.0,0.6239096]
[1752159696321,0.61491746,111320.0,111310.0,0.6565096]
[1752159696630,0.43526746,111320.0,111310.0,0.6565096]
[1752159696831,0.61885636,111320.0,111310.0,0.6565096]
[1752159697534,0.61485636,111320.0,111310.0,0.6565096]
[1752159697733,0.97765636,111320.0,111310.0,0.0847116]
[1752159697925,0.61685636,111320.0,111310.0,0.6251096]
[1752159698536,0.39043106,111320.0,111310.0,0.6251096]
[1752159698730,0.57001296,111320.0,111310.0,0.6251096]
[1752159698930,0.57001296,111320.0,111310.0,0.6579096]
[1752159699236,0.57001344,111320.0,111310.0,0.6579096]
[1752159699634,0.26462308,111320.0,111310.0,0.6579096]
[1752159699831,0.57001344,111320.0,111310.0,0.6579096]
[1752159700634,0.57001344,111320.0,111310.0,0.65790677]
[1752159700835,0.23142308,111320.0,111310.0,0.65790677]
[1752159702734,0.53681344,111320.0,111310.0,0.65790677]
[1752159709231,0.53681344,111320.0,111310.0,0.65790676]
[1752159709542,0.53681344,111320.0,111310.0,0.66688527]
[1752159709742,0.53681344,111320.0,111310.0,0.65790676]
[1752159710043,0.05184118,111320.0,111310.0,0.96329712]
[1752159710238,0.23142308,111320.0,111310.0,0.96329712]
[1752159711244,0.23042308,111320.0,111310.0,0.96329712]
[1752159712238,0.23042308,111320.0,111310.0,0.96329655]
[1752159712740,0.19663016,111320.0,111310.0,0.96329655]
[1752159713447,0.04973319,111320.0,111310.0,0.96329655]
[1752159713948,0.04973319,111320.0,111310.0,0.98221764]
[1752159714142,0.22931509,111320.0,111310.0,0.68584154]
[1752159714649,0.19663016,111320.0,111310.0,0.68584154]
[1752159715241,0.19663016,111320.0,111310.0,0.67180335]
[1752159715749,0.01704826,111320.0,111310.0,0.67180335]
[1752159717541,0.0494758,111320.0,111310.0,0.67180335]
[1752159717950,0.0494758,111320.0,111310.0,0.97719371]
[1752159718251,0.01704826,111320.0,111310.0,0.97719371]
[1752159723951,0.51825686,111330.0,111320.0,0.1959419]
[1752159724148,0.51825686,111330.0,111320.0,1.8458319]
[1752159724351,0.55071467,111330.0,111320.0,1.8458319]
[1752159725253,0.58231467,111330.0,111320.0,1.8458319]
[1752159725453,0.58331467,111330.0,111320.0,1.8458319]
[1752159726647,0.58331467,111330.0,111320.0,1.91706175]
[1752159727756,0.58431467,111330.0,111320.0,1.91706175]
[1752159729458,0.27892431,111330.0,111320.0,1.91706175]
[1752159729661,0.58431467,111330.0,111320.0,1.91706175]
[1752159730051,0.58431397,111330.0,111320.0,1.91706175]
[1752159730955,0.58431397,111330.0,111320.0,0.11123985]
[1752159731151,0.58431397,111330.0,111320.0,0.29082175]
[1752159731757,0.09935781,111330.0,111320.0,0.29082175]
[1752159732056,0.58431377,111330.0,111320.0,0.29082175]
[1752159732256,0.58431377,111330.0,111320.0,0.29082155]
[1752159734261,1.20059377,111330.0,111320.0,0.29082155]
[1752159734763,1.20059377,111330.0,111320.0,0.04001]
[1752159734764,1.86678413,111330.0,111320.0,0.04001]
[1752159737162,1.86678413,111330.0,111320.0,0.02365]
[1752159742267,0.1795978,111310.0,111300.0,0.80465177]
[1752159742462,0.51744597,111310.0,111300.0,0.82907177]
[1752159742767,0.54864597,111310.0,111300.0,0.78416917]
[1752159742969,0.58014597,111310.0,111300.0,0.78416917]
[1752159744965,0.54864597,111310.0,111300.0,0.69637867]
[1752159745265,1.16488597,111310.0,111300.0,0.2548636]
[1752159745567,1.19648597,111310.0,111300.0,0.2548636]